bitfinex/quotes_ETHUSD_20250620
["timestamp","ask_amount","ask_price","bid_price","bid_amount"]
[1750432052695,0.7609,2500.4,2500.2,3.9995425]
[1750432052916,1.3109,2500.4,2500.3,3.99952005]
[1750432053115,1.3109,2500.4,2500.1,3.9996953]
[1750432053437,1.3109,2500.4,2499.9,4.00006765]
[1750432053438,0.55,2500.3,2499.9,4.00006765]
[1750432053623,11.65452287,2500.3,2499.8,4.00023837]
[1750432054022,0.55,2500.1,2499.8,4.00023837]
[1750432054223,4.54985427,2500.1,2499.6,4.00052193]
[1750432054537,0.55,2500.2,2499.8,4.00031985]
[1750432054738,14.54978359,2500.2,2499.7,4.00039824]
[1750432055243,14.54978359,2500.2,2499.8,4.00031359]
[1750432055244,10.55,2500.2,2499.8,4.00031359]
[1750432055398,10.55,2500.2,2499.6,4.0006401]
[1750432055595,10.55,2500.2,2499.8,4.00022826]
[1750432055837,10.55,2500.2,2499.6,0.44007255]
[1750432056016,0.55,2499.9,2499.4,4.00096023]
[1750432056212,0.55,2499.7,2499.0,4.43461172]
[1750432056399,0.8266,2499.4,2499.0,3.60731172]
[1750432056606,0.8266,2499.4,2499.0,3.96804289]
[1750432056801,0.8266,2499.4,2499.0,7.96957338]
[1750432057113,0.55,2499.3,2499.0,4.00149309]
[1750432057315,7.9286,2499.4,2499.1,4.00131935]
[1750432057535,7.9286,2499.4,2498.7,4.00206833]
[1750432057536,7.9286,2499.4,2499.3,4.00112031]
[1750432057727,0.8266,2499.4,2499.2,4.00117712]
[1750432057921,0.55,2499.3,2498.9,4.00166212]
[1750432058128,0.8266,2499.4,2498.9,0.40016621]
[1750432058305,0.8266,2499.4,2498.4,10.8273]
[1750432058306,0.8266,2499.4,2499.1,4.00134413]
[1750432058503,0.8266,2499.4,2499.0,4.00152476]
[1750432059041,0.8266,2499.4,2498.4,10.8273]
[1750432059217,0.55,2499.3,2498.9,4.00167236]
[1750432059543,0.55,2499.3,2498.6,4.00215939]
[1750432059544,0.55,2499.2,2498.6,4.00215939]
[1750432059834,0.55,2499.2,2498.8,4.00192092]
[1750432060003,0.55,2499.2,2498.8,4.00181621]
[1750432060357,0.55,2499.2,2498.6,0.48294594]
[1750432060358,0.55,2499.0,2498.6,0.48294594]
[1750432060540,0.55,2499.0,2498.4,4.86985989]
[1750432060712,0.55,2499.0,2498.7,4.00199955]
[1750432060916,10.0,2499.1,2499.0,4.00160064]
[1750432061423,0.8266,2499.4,2498.7,0.04001603]
[1750432061631,0.55,2499.3,2498.4,4.82979876]
[1750432061844,0.55,2499.3,2499.1,4.00143389]
[1750432062027,0.55,2499.3,2499.1,4.00134875]
[1750432062355,0.55,2499.3,2499.1,4.00144051]
[1750432062741,0.55,2499.3,2498.9,4.00163422]
[1750432062917,0.55,2499.3,2499.0,4.00151338]
[1750432063249,0.55,2499.3,2499.1,4.00131451]
[1750432063450,0.55,2499.3,2499.2,4.0012804]
[1750432063651,0.55,2499.3,2498.6,4.00208339]
[1750432063952,0.55,2499.3,2498.5,11.48297988]
[1750432063953,0.55,2499.3,2498.9,4.00170974]
[1750432064152,0.55,2499.3,2499.1,4.001423]
[1750432064366,0.55,2499.3,2499.2,4.0012804]
[1750432065225,1.3766,2499.4,2499.2,4.00121242]
[1750432065657,0.39739872,2499.5,2499.2,4.00121242]
[1750432065658,2.8197,2499.7,2499.5,4.00065694]
[1750432065857,2.8197,2499.7,2499.6,4.0006401]
[1750432066057,2.034,2499.7,2499.6,4.0006401]
[1750432066223,2.034,2499.7,2499.2,0.80026272]
[1750432066426,6.03457836,2499.7,2499.2,4.00122235]
[1750432066625,0.55,2499.4,2499.3,4.00110598]
[1750432067150,0.55,2499.4,2499.0,4.00152844]
[1750432067347,4.55097358,2499.4,2498.6,4.00224125]
[1750432067546,0.55,2499.0,2498.1,0.7797]
[1750432067717,0.55,2499.0,2498.7,4.00197839]
[1750432067918,0.55,2499.1,2498.8,4.00191688]
[1750432068244,0.55,2499.1,2498.2,1.24267]
[1750432068245,0.55,2499.2,2498.7,4.00201309]
[1750432068543,0.55,2499.2,2498.6,4.00209898]
[1750432068747,4.55146232,2499.1,2498.7,4.00199811]
[1750432068941,0.7857,2499.0,2498.3,0.202237]
[1750432069142,0.7857,2499.0,2498.6,4.00216597]
[1750432069350,0.7857,2499.0,2498.6,4.00214546]
[1750432069524,0.7857,2499.0,2498.8,4.00183282]
[1750432069730,0.7857,2499.0,2498.7,4.00201045]
[1750432070369,0.7857,2499.0,2498.6,4.00219485]
[1750432070546,0.55,2498.9,2498.6,4.00219485]
[1750432070931,0.55,2498.9,2498.4,4.00247429]
[1750432070932,0.55,2498.9,2498.7,4.00207477]
[1750432071246,0.55,2499.0,2498.9,4.00176077]
[1750432071454,0.55,2499.0,2498.8,4.0018432]
[1750432071648,0.55,2499.0,2498.9,4.00176077]
[1750432071831,0.55,2499.0,2498.8,4.00182945]
[1750432072032,0.55,2499.0,2498.4,4.00256163]
[1750432072360,0.55,2499.0,2498.7,4.00192954]
[1750432072735,0.55,2499.0,2498.8,4.00190515]
[1750432072941,0.55,2499.0,2498.9,4.00176077]
[1750432073142,0.55,2499.0,2498.8,4.00191863]
[1750432073567,0.55,2499.0,2498.9,4.00176077]
[1750432073861,0.55,2499.0,2498.8,4.00183277]
[1750432074466,4.76348798,2499.3,2499.2,4.0012804]
[1750432074467,0.7623,2499.3,2499.2,4.0012804]
[1750432074637,0.7623,2499.3,2499.0,4.00153904]
[1750432074968,0.7623,2499.3,2499.1,4.00142475]
[1750432075167,9.129,2499.4,2499.2,4.0012804]
[1750432075338,0.55,2499.3,2499.2,4.0012804]
[1750432075665,0.55,2499.3,2498.8,4.80225632]
[1750432075666,0.55,2499.3,2499.1,4.00136076]
[1750432076070,0.55,2499.3,2498.6,0.818]
[1750432076367,0.55,2499.3,2498.6,4.82022795]
[1750432076565,0.55,2499.3,2499.1,4.0014365]
[1750432076769,9.676,2499.4,2499.3,4.00111984]
[1750432076970,0.55,2499.4,2499.2,4.00120965]
[1750432077182,9.676,2499.4,2499.2,4.00127424]
[1750432077484,9.126,2499.4,2498.6,0.818]
[1750432077653,9.126,2499.4,2499.2,4.00119842]
[1750432079437,0.55,2498.9,2498.3,0.8053]
[1750432079645,0.55,2498.9,2498.5,4.00235659]
[1750432079873,4.55176872,2498.9,2498.5,4.00235659]
[1750432080075,4.55176872,2498.9,2498.3,4.80794694]
[1750432080277,14.39531772,2498.5,2497.7,0.7658]
[1750432080440,0.55,2498.0,2497.4,0.7658]
[1750432080637,14.00363869,2497.8,2497.1,0.78]
[1750432080861,14.00363869,2497.8,2497.2,4.00446664]
[1750432080862,4.55379882,2497.7,2497.2,4.00446664]
[1750432081073,4.55379882,2497.7,2496.8,6.56568781]
[1750432081074,17.089,2497.6,2497.1,4.00454304]
[1750432081373,0.55,2497.3,2496.8,2.56058199]
[1750432081669,0.55,2497.3,2496.9,4.00487554]
[1750432081870,0.55,2497.1,2496.8,1.78058199]
[1750432082073,10.55,2497.1,2496.8,4.00511422]
[1750432082286,0.55,2497.0,2496.2,0.7902]
[1750432082653,0.55,2497.0,2496.6,4.00537029]
[1750432082853,4.5548131,2497.0,2496.3,4.00587643]
[1750432083053,0.55,2497.0,2496.6,4.00541734]
[1750432083248,0.55,2497.0,2496.3,0.88023094]
[1750432083249,1.19432178,2497.4,2496.9,4.00487596]
[1750432083451,0.7979,2497.4,2496.5,0.0400549]
[1750432083688,4.216,2498.6,2496.5,0.0400549]
[1750432083689,10.0,2497.7,2496.9,0.8002]
[1750432083864,10.0,2497.7,2497.2,4.00447141]
[1750432084070,10.0,2497.7,2496.9,0.8002]
[1750432084266,10.0,2497.7,2497.3,4.0042601]
[1750432084465,0.55,2497.6,2497.2,4.00439607]
[1750432084659,10.0,2497.5,2497.2,4.00448502]
[1750432084854,0.7729,2497.8,2497.2,0.04004319]
[1750432085181,2.8248,2498.1,2498.0,4.00320256]
[1750432085397,2.023,2498.1,2498.0,4.00320256]
[1750432086042,9.11,2498.3,2498.1,4.00295143]
[1750432086239,10.4096,2498.7,2497.6,4.00384368]
[1750432086472,19.11,2498.6,2497.7,0.51570421]
[1750432086680,9.11,2498.6,2498.1,4.0029447]
[1750432086845,9.11,2498.6,2497.7,4.00368338]
[1750432087043,2.0672511,2498.9,2497.5,0.7529]
[1750432087044,4.0902511,2498.9,2497.5,0.7529]
[1750432087279,11.1772511,2498.9,2498.4,4.00252284]
[1750432087485,10.0,2498.8,2498.4,4.00252284]
[1750432087844,0.55,2498.7,2498.4,4.00252284]
[1750432088043,9.11,2498.9,2498.5,4.00239178]
[1750432088246,9.11,2498.9,2498.4,4.002495]
[1750432088247,13.11177754,2498.9,2498.4,4.002495]
[1750432088600,0.55,2498.6,2498.4,4.002495]
[1750432088801,0.55,2498.6,2498.3,4.00263479]
[1750432089391,0.55,2498.7,2498.3,4.00267067]
[1750432089560,0.55,2498.7,2497.9,4.00332775]
[1750432089750,0.55,2498.7,2498.4,4.00252732]
[1750432089949,10.55,2498.7,2498.5,4.00238214]
[1750432090150,10.55,2498.7,2498.4,4.00248915]
[1750432090346,10.55,2498.7,2498.6,4.00224125]
[1750432090572,10.55,2498.7,2498.0,0.40033278]
[1750432090782,10.55,2498.7,2498.4,4.00248881]
[1750432091079,10.55,2498.7,2497.8,4.0033951]
[1750432091285,10.55,2498.7,2498.4,4.00240852]
[1750432091443,10.55,2498.7,2498.3,4.00263525]
[1750432091655,10.55,2498.5,2498.1,4.00293252]
[1750432091859,17.633,2498.5,2498.1,4.00293252]
[1750432092262,17.633,2498.5,2498.3,4.00263844]
[1750432092503,17.633,2498.5,2498.0,4.00314288]
[1750432092799,0.55,2498.3,2498.0,4.00317752]
[1750432092960,0.55,2498.3,2498.2,4.00288207]
[1750432093779,0.55,2498.3,2497.6,4.00369125]
[1750432093977,0.55,2498.3,2497.9,4.00327317]
[1750432094184,10.55,2498.3,2497.9,4.00323472]
[1750432094384,0.55,2498.3,2497.5,4.75684199]
[1750432094601,10.0,2498.1,2497.5,4.0039639]
[1750432094806,0.55,2498.0,2497.5,4.04399971]
[1750432094972,0.55,2498.0,2497.8,4.00336687]
[1750432095305,0.55,2498.0,2497.7,4.00360043]
[1750432095457,7.081,2497.9,2497.7,4.00367227]
[1750432095660,7.631,2497.9,2497.8,4.0035231]
[1750432096086,7.631,2497.9,2497.7,4.00361041]
[1750432096293,7.631,2497.9,2497.0,4.00479521]
[1750432096294,0.7635,2497.8,2496.9,4.00496615]
[1750432096480,0.7635,2497.8,2497.1,4.00464538]
[1750432096682,17.631,2497.9,2497.8,4.0035231]
[1750432096888,10.0,2497.9,2497.8,4.0035231]
[1750432097088,10.0,2497.9,2497.7,4.00367722]
[1750432097291,10.0,2497.9,2497.3,0.784]
[1750432097483,0.55,2497.8,2497.5,4.00389664]
[1750432097702,10.55,2497.6,2497.0,1.18449661]
[1750432098092,10.55,2497.6,2497.3,4.00419857]
[1750432098295,10.55,2497.6,2497.4,4.00414556]
[1750432098600,6.02623798,2498.0,2497.0,5.18927834]
[1750432098601,9.102,2497.8,2497.7,4.00368338]
[1750432098803,0.7718,2498.1,2497.7,4.00368338]
[1750432098804,12.023,2498.1,2498.0,4.00320256]
[1750432098965,10.0,2498.0,2497.8,4.00342076]
[1750432099167,2.023,2498.1,2497.8,4.00345566]
[1750432099408,0.55,2498.0,2497.8,4.00345566]
[1750432099610,9.102,2498.2,2497.8,0.80071943]
[1750432099769,9.102,2498.2,2498.1,4.00295378]
[1750432100106,9.101,2498.2,2495.5,17.494]
[1750432100310,9.101,2498.2,2497.9,4.00330289]
[1750432100605,2.023,2498.2,2498.0,4.00320256]
[1750432100805,9.101,2498.2,2498.1,4.00304231]
[1750432100981,9.101,2498.2,2497.9,4.00322014]
[1750432101182,10.55,2498.1,2497.7,4.00352857]
[1750432101483,1.3586,2498.0,2497.9,4.00336282]
[1750432101678,0.55,2497.9,2497.6,4.00371492]
[1750432101882,17.627,2497.9,2497.5,4.00390466]
[1750432102208,7.627,2497.9,2497.6,4.00384309]
[1750432102409,7.627,2497.9,2497.7,4.00368109]
[1750432102570,7.627,2497.9,2497.6,4.0037665]
[1750432102972,0.55,2497.7,2497.0,1.18509661]
[1750432103173,5.3241353,2497.4,2497.0,4.00477925]
[1750432103520,10.55,2497.2,2496.9,4.00484711]
[1750432103804,10.94100436,2497.2,2496.8,4.0050408]
[1750432104014,10.94100436,2497.2,2496.6,4.0054474]
[1750432104177,9.098,2497.1,2496.9,4.00490015]
[1750432104369,9.648,2497.1,2497.0,4.00480576]
[1750432104601,2.023,2497.3,2497.0,0.80097059]
[1750432104811,2.023,2497.8,2497.7,4.00368338]
[1750432105446,0.8222,2498.2,2498.0,4.00318821]
[1750432105707,10.0,2498.0,2496.9,0.805]
[1750432105877,10.0,2498.0,2497.8,4.00350086]
[1750432106077,10.0,2498.0,2497.9,4.00336282]
[1750432106296,10.55,2498.0,2497.8,4.00347293]
[1750432106511,10.55,2498.0,2497.7,4.00367308]
[1750432106812,10.55,2498.0,2497.1,0.7876]
[1750432106813,0.55,2497.9,2497.1,0.7876]
[1750432107016,0.55,2497.7,2497.1,0.7876]
[1750432107522,0.55,2497.7,2497.4,4.00408784]
[1750432107710,0.55,2497.7,2497.5,4.00399792]
[1750432107874,0.55,2497.7,2497.6,4.00384368]
[1750432108071,0.55,2497.7,2497.5,4.00392071]
[1750432108510,0.55,2497.7,2497.3,4.00425306]
[1750432108689,0.55,2497.7,2497.5,4.0039961]
[1750432109481,7.074,2497.8,2497.7,4.00368338]
[1750432109683,0.55,2497.9,2497.6,4.00368616]
[1750432109877,0.8222,2498.2,2497.9,4.0033343]
[1750432110086,0.7781,2498.6,2497.5,0.7923]
[1750432110313,4.00262676,2498.4,2497.9,4.00327605]
[1750432110619,4.55280937,2498.3,2497.8,4.00345624]
[1750432110915,0.55,2497.9,2497.4,4.00409872]
[1750432111116,0.55,2497.5,2497.1,4.0045356]
[1750432111278,7.071,2497.4,2497.1,4.0045356]
[1750432111479,7.071,2497.4,2497.2,4.00444642]
[1750432111782,0.55,2497.3,2497.0,4.00472599]
[1750432111982,2.023,2497.2,2497.0,4.00472599]
[1750432112315,2.023,2497.2,2496.5,0.8092]
[1750432112487,2.023,2497.2,2497.1,4.00464538]
[1750432112680,2.023,2497.2,2497.0,4.00472025]
[1750432112889,2.023,2497.2,2496.7,4.00519556]
[1750432113183,2.023,2497.2,2497.0,4.00480555]
[1750432113404,2.023,2497.2,2496.8,4.0050631]
[1750432113601,2.023,2497.2,2497.1,4.00464538]
[1750432113989,2.023,2497.2,2496.8,4.80609879]
[1750432114228,2.023,2497.2,2496.5,0.8092]
[1750432114229,2.023,2497.4,2496.5,0.8092]
[1750432114619,2.023,2497.4,2496.6,0.04004708]
[1750432114819,2.023,2497.4,2497.1,4.0046382]
[1750432115244,2.023,2497.4,2497.1,4.00458285]
[1750432115458,2.023,2497.4,2496.5,0.8092]
[1750432115763,2.023,2497.4,2497.2,4.00446842]
[1750432116093,2.023,2497.4,2497.3,4.00432467]
[1750432116843,2.01,2497.6,2497.5,4.004004]
[1750432119905,2.01,2497.6,2497.4,4.00407435]
[1750432120447,2.01,2497.6,2497.3,4.00424918]
[1750432120647,0.7888,2497.5,2497.1,4.00454894]
[1750432120948,0.7888,2497.5,2497.2,4.00448404]
[1750432121141,0.7888,2497.5,2497.3,4.00423083]
[1750432121336,0.7888,2497.5,2497.1,4.00454022]
[1750432121638,0.7888,2497.5,2497.2,4.004478]
[1750432122029,0.7888,2497.5,2497.0,4.0047549]
[1750432122229,4.00439448,2497.3,2496.3,4.55995883]
[1750432122425,0.55,2497.2,2496.8,4.00503996]
[1750432122733,0.55,2497.2,2496.9,4.00495182]
[1750432122950,4.55449544,2497.2,2496.4,10.8244]
[1750432123262,0.55,2497.0,2496.4,4.00569502]
[1750432123557,9.074,2496.9,2496.3,3.67972789]
[1750432123729,9.074,2496.9,2496.6,4.00536937]
[1750432123925,5.33892883,2496.8,2496.3,3.67972789]
[1750432124234,1.3338,2496.8,2496.5,4.0055886]
[1750432124439,1.3338,2496.8,2496.5,4.00552186]
[1750432124638,1.3338,2496.8,2496.5,4.00554112]
[1750432125563,1.3338,2496.8,2496.6,4.0053212]
[1750432125729,1.3338,2496.8,2496.5,4.00552581]
[1750432125927,9.073,2496.7,2496.5,4.00550526]
[1750432126662,0.7838,2496.8,2496.3,3.67972789]
[1750432126861,9.073,2496.8,2496.7,4.00528697]
[1750432127480,9.073,2496.8,2496.3,4.04770068]
[1750432127628,9.073,2496.8,2496.6,4.00544443]
[1750432127834,9.073,2496.8,2496.7,4.00528697]
[1750432128170,9.073,2496.8,2496.4,4.00576752]
[1750432128353,9.073,2496.8,2496.6,4.00543854]
[1750432128532,9.073,2496.8,2496.5,4.00559491]
[1750432128928,9.073,2496.8,2496.3,3.67972789]
[1750432129128,9.073,2496.8,2496.4,4.00565513]
[1750432129340,9.073,2496.8,2496.3,7.68565346]
[1750432129545,13.07814677,2496.8,2496.3,3.67972789]
[1750432129842,4.00551565,2496.6,2496.3,3.67972789]
[1750432130086,0.55,2496.5,2496.3,3.67972789]
[1750432130590,7.06,2496.4,2496.3,3.67972789]
[1750432131166,7.06,2496.4,2496.3,7.68565666]
[1750432131493,7.06,2496.4,2496.3,3.67972789]
[1750432131979,7.06,2496.4,2496.3,7.68565666]
[1750432132145,7.06,2496.4,2496.3,3.67972789]
[1750432132340,7.06,2496.4,2496.2,4.0060015]
[1750432132653,7.06,2496.4,2496.3,4.00592877]
[1750432133176,0.41002596,2496.6,2496.4,4.00573895]
[1750432133376,0.8331,2496.7,2495.9,4.00654377]
[1750432133541,0.40489513,2497.1,2496.9,4.00484021]
[1750432133746,9.069,2497.2,2496.9,4.00489864]
[1750432133943,9.069,2497.2,2496.1,0.8232]
[1750432134138,10.8047,2497.3,2496.3,4.00592877]
[1750432134372,9.068,2497.2,2497.0,4.0047257]
[1750432134573,10.8047,2497.3,2497.0,4.0047257]
[1750432134773,9.068,2497.2,2497.0,4.00471114]
[1750432134989,9.068,2497.2,2496.9,4.00490398]
[1750432134990,9.068,2497.2,2497.1,4.00464538]
[1750432135189,2.011,2497.2,2497.1,4.00464538]
[1750432135393,9.068,2497.2,2496.7,0.8003]
[1750432135600,9.068,2497.2,2497.0,4.0046672]
[1750432136547,9.068,2497.2,2496.7,4.00523551]
[1750432136744,9.068,2497.2,2496.8,4.00497017]
[1750432136950,9.068,2497.2,2497.0,4.00468894]
[1750432137563,9.068,2497.2,2496.6,4.00541867]
[1750432137886,9.068,2497.2,2496.7,0.40054187]
[1750432138087,9.068,2497.2,2497.0,4.0047227]
[1750432138286,9.065,2497.3,2497.2,4.00448502]
[1750432138456,9.065,2497.3,2497.1,4.00451981]
[1750432138780,9.065,2497.3,2497.0,4.00479466]
[1750432139487,13.06940183,2497.3,2496.7,4.00520702]
[1750432139686,13.06940183,2497.3,2496.8,4.00501142]
[1750432139872,9.065,2497.3,2496.9,4.00495321]
[1750432140076,13.06933381,2497.3,2496.9,4.00495321]
[1750432140388,13.06941609,2497.3,2496.8,4.00503079]
[1750432140585,0.55,2497.2,2496.7,4.00521868]
[1750432140788,9.46755222,2497.3,2496.9,4.00489402]
[1750432141094,0.7622,2497.6,2496.6,0.8171]
[1750432141398,11.46439413,2497.9,2497.3,4.00432467]
[1750432141705,0.36496611,2497.8,2497.5,4.00391498]
[1750432141999,0.36496611,2497.8,2497.4,4.00408739]
[1750432142197,11.0553814,2497.9,2497.2,0.8171]
[1750432142198,7.052,2497.9,2497.2,0.8171]
[1750432142401,0.36466119,2497.8,2497.5,4.00391565]
[1750432142576,2.8029,2498.0,2497.7,4.00365606]
[1750432142888,0.8024,2498.3,2498.0,4.00306255]
[1750432143052,9.062,2498.3,2498.1,4.00295679]
[1750432143387,13.06474659,2498.3,2497.9,4.00335067]
[1750432143686,13.06474659,2498.3,2497.5,0.792]
[1750432143687,0.8147,2498.0,2497.5,0.792]
[1750432143986,9.061,2498.1,2497.6,0.04003349]
[1750432144184,1.21639107,2498.3,2497.6,0.04003349]
[1750432144185,1.21639107,2498.3,2497.9,4.00325435]
[1750432144393,9.061,2498.2,2498.0,4.00310971]
[1750432144592,9.061,2498.2,2497.6,4.00370309]
[1750432144793,9.061,2498.2,2497.8,4.00343059]
[1750432145154,9.061,2498.2,2497.7,0.47957031]
[1750432145360,4.55312435,2498.1,2497.6,4.00372742]
[1750432145582,5.20887348,2498.3,2497.3,0.04003718]
[1750432145785,4.00305671,2498.1,2497.6,4.00368843]
[1750432145969,4.00322073,2498.0,2497.6,4.00371278]
[1750432146296,0.55,2498.2,2497.8,4.0035231]
[1750432146297,9.045,2497.9,2497.8,4.0035231]
[1750432147017,9.045,2497.9,2497.6,4.00384174]
[1750432147498,9.045,2497.9,2497.4,4.00405986]
[1750432147499,9.045,2497.9,2497.5,4.00391868]
[1750432147699,0.19711541,2498.2,2497.6,0.04003717]
[1750432147860,0.19711541,2498.2,2497.7,4.00352679]
[1750432148198,0.19711541,2498.2,2497.4,4.00409178]
[1750432148199,4.00334621,2498.0,2497.4,4.00409178]
[1750432148412,7.596,2497.9,2497.5,4.00385777]
[1750432148718,7.596,2497.9,2496.9,0.7837]
[1750432148719,0.55,2497.7,2496.9,0.7837]
[1750432148864,4.5536927,2497.7,2497.2,4.00435704]
[1750432149064,0.55,2497.7,2496.9,0.7837]
[1750432149309,4.55368688,2497.7,2497.2,4.00433754]
[1750432149477,4.55368688,2497.7,2496.9,0.7837]
[1750432149478,0.55,2497.7,2497.3,4.00431462]
[1750432149671,9.041,2497.7,2497.6,4.00384368]
[1750432149889,1.997,2497.7,2497.6,4.00384368]
[1750432150084,0.7567,2498.1,2497.5,4.00400084]
[1750432150289,9.041,2498.1,2498.0,4.00320256]
[1750432150888,1.997,2498.1,2498.0,4.00320256]
[1750432151401,1.997,2498.1,2497.9,4.00320579]
[1750432151565,1.997,2498.1,2498.0,4.00320256]
[1750432153165,1.997,2498.1,2497.9,4.00322471]
[1750432153365,0.19711541,2498.2,2498.1,4.00304231]
[1750432153567,0.19711541,2498.2,2498.1,14.80624231]
[1750432154199,0.7903,2499.5,2499.1,4.00144051]
[1750432154804,0.7903,2499.5,2499.0,4.00151679]
[1750432154974,0.7903,2499.5,2499.1,4.00144051]
[1750432155179,0.7903,2499.5,2498.9,4.00162881]
[1750432155369,0.7903,2499.5,2499.1,4.00144051]
[1750432155725,0.8041,2499.0,2498.4,4.16850152]
[1750432155926,0.55,2498.9,2498.4,4.16850152]
[1750432156098,4.00192906,2498.8,2498.4,4.16850152]
[1750432156267,4.00192906,2498.8,2498.4,8.17095529]
[1750432156268,0.55,2498.8,2498.4,8.17095529]
[1750432156622,0.7884,2498.7,2498.4,4.16850152]
[1750432156837,0.55,2498.5,2498.4,4.16850152]
[1750432157376,4.55240144,2498.5,2498.4,4.16850152]
[1750432157608,4.96201104,2498.5,2498.4,4.16850152]
[1750432157911,0.9596096,2498.5,2498.4,4.16850152]
[1750432159678,0.55,2498.5,2498.4,4.16850152]
[1750432160074,0.7884,2498.7,2498.4,4.16850152]
[1750432160307,9.031,2498.7,2498.5,4.00232483]
[1750432160485,0.55,2498.6,2498.4,4.16850152]
[1750432161302,4.55225057,2498.6,2498.4,4.16850152]
[1750432161505,0.55,2498.6,2498.4,4.16850152]
[1750432161721,0.8294,2498.5,2498.4,4.16850152]
[1750432162018,0.55,2498.3,2497.4,4.00416433]
[1750432162200,4.55311472,2498.1,2497.6,4.00382593]
[1750432162542,4.55311472,2498.1,2497.1,4.00461726]
[1750432162543,0.55,2497.7,2496.8,0.8053]
[1750432162833,0.7778,2497.3,2496.6,4.0054474]
[1750432163072,9.029,2497.2,2496.9,4.00489266]
[1750432163180,9.029,2497.2,2496.6,4.0054474]
[1750432163385,0.55,2497.1,2496.5,0.8053]
[1750432163614,0.55,2497.1,2496.9,4.00489139]
[1750432163988,9.028,2497.2,2497.0,4.00472135]
[1750432164336,0.7778,2497.3,2497.2,4.00448502]
[1750432164544,0.55,2497.5,2496.6,4.0054474]
[1750432164697,0.55,2497.5,2496.8,4.00506346]
[1750432165038,0.55,2497.3,2497.0,4.00479495]
[1750432165330,0.55,2497.5,2497.1,4.00453296]
[1750432165885,4.55401421,2497.5,2497.0,4.00473076]
[1750432166192,0.39390552,2497.5,2496.6,4.0054319]
[1750432166394,9.579,2497.4,2497.0,4.00472223]
[1750432166736,4.00441523,2497.3,2496.7,0.04004693]
[1750432166885,4.00441523,2497.3,2496.7,4.00514221]
[1750432167086,9.579,2497.4,2496.8,4.00504424]
[1750432167388,9.579,2497.4,2497.1,4.0046352]
[1750432167610,10.55948,2497.4,2496.6,4.0054474]
[1750432167812,14.56372438,2497.4,2496.5,10.8053]
[1750432168133,9.579,2497.4,2497.0,4.00476444]
[1750432168282,9.579,2497.4,2496.9,4.00495035]
[1750432168478,9.579,2497.4,2497.0,4.00479327]
[1750432168717,4.00440089,2497.3,2496.8,4.00507368]
[1750432168934,4.00440089,2497.3,2496.5,10.8053]
[1750432168935,0.55,2497.2,2496.9,4.00488556]
[1750432169282,0.55,2497.2,2496.8,4.00504812]
[1750432170304,0.7564,2497.3,2496.9,4.00490541]
[1750432170507,0.55,2497.2,2496.5,0.8053]
[1750432170732,4.00525587,2496.8,2496.3,4.00592532]
[1750432170937,1.22592559,2496.7,2496.4,4.0056558]
[1750432171128,0.8254,2496.7,2496.5,4.00550805]
[1750432171544,0.8254,2496.7,2496.4,4.00574195]
[1750432171849,9.026,2496.8,2496.6,4.0053718]
[1750432172049,9.026,2496.8,2496.7,4.00528697]
[1750432172251,7.029,2496.9,2496.8,4.00502217]
[1750432172741,9.8504,2497.1,2496.9,4.00485786]
[1750432172943,9.8504,2497.1,2496.7,4.00519471]
[1750432172944,10.89044,2497.1,2496.7,4.00516951]
[1750432173448,10.89044,2497.1,2496.7,4.00521131]
[1750432173763,14.89509958,2497.1,2496.4,0.8155]
[1750432173945,10.89044,2497.1,2496.7,4.00521305]
[1750432174257,10.89044,2497.1,2496.7,4.00521458]
[1750432175155,7.028,2497.0,2496.9,4.00487732]
[1750432175352,7.028,2497.0,2496.4,0.8155]
[1750432175541,7.028,2497.0,2496.6,4.00528939]
[1750432175764,7.028,2497.0,2496.8,4.00502347]
[1750432176151,7.028,2497.0,2496.9,4.00496615]
[1750432176356,7.028,2497.0,2496.8,4.00498204]
[1750432177268,7.028,2497.0,2496.9,4.00496615]
[1750432177583,7.028,2497.0,2496.5,4.00560785]
[1750432177782,11.03282924,2497.0,2496.4,4.82120704]
[1750432177955,7.028,2497.0,2496.6,4.00532085]
[1750432178284,7.028,2497.0,2496.6,4.00529966]
[1750432178485,4.00505252,2496.9,2496.1,0.8158]
[1750432178658,0.55,2496.9,2496.5,4.0054998]
[1750432178846,0.55,2496.9,2496.4,4.005671]
[1750432179051,0.55,2496.9,2496.4,4.00575633]
[1750432179253,0.55,2496.9,2496.6,4.00543095]
[1750432179753,4.55505307,2496.9,2496.4,4.00570618]
[1750432179949,0.55,2496.7,2496.2,4.00596068]
[1750432180182,7.8108,2496.6,2495.7,0.8081]
[1750432180363,7.8108,2496.6,2496.4,4.00567265]
[1750432180779,7.8108,2496.6,2496.4,4.00576274]
[1750432180980,1.984,2496.8,2496.4,4.00568522]
[1750432181181,0.7608,2497.1,2496.4,0.48990778]
[1750432181351,0.7608,2497.1,2496.3,4.0059283]
[1750432181551,1.984,2497.3,2497.2,4.00448502]
[1750432181756,1.984,2497.3,2497.1,4.00457235]
[1750432182272,1.984,2497.3,2496.9,4.00491166]
[1750432182473,1.984,2497.3,2496.5,4.04565386]
[1750432182706,1.984,2497.3,2497.2,4.00448502]
[1750432182904,1.984,2497.3,2497.1,4.00455608]
[1750432183091,1.984,2497.3,2497.2,4.00448502]
[1750432183292,7.7791,2497.4,2497.2,4.00433609]
[1750432183293,9.7621,2497.4,2497.2,4.00433609]
[1750432183603,1.984,2497.4,2497.3,4.00432467]
[1750432183756,9.616,2497.5,2497.4,4.00416433]
[1750432183956,2.93046108,2497.6,2497.5,4.004004]
[1750432184157,7.8101,2498.0,2496.9,14.76703072]
[1750432184401,4.00361231,2497.8,2497.3,4.00431676]
[1750432184704,0.55,2497.5,2496.9,0.7621]